bitfinex/quotes_BTCUSD_20250813
["timestamp","ask_amount","ask_price","bid_price","bid_amount"]
[1755114798093,1.11199478,122540.0,122530.0,1.13255361]
[1755114801108,1.01199478,122540.0,122530.0,1.32913361]
[1755114801313,1.01199478,122540.0,122530.0,1.20137361]
[1755114801518,1.01199478,122540.0,122530.0,1.32913361]
[1755114804863,0.98699478,122540.0,122530.0,1.32913361]
[1755114805094,1.01199478,122540.0,122530.0,1.32913361]
[1755114805286,1.09447921,122540.0,122530.0,1.32913361]
[1755114806034,1.01199478,122540.0,122530.0,1.32913361]
[1755114806259,1.00399478,122540.0,122530.0,1.32913361]
[1755114806414,1.00399478,122540.0,122530.0,1.32909361]
[1755114807105,0.97899478,122540.0,122530.0,1.32909361]
[1755114807326,1.00399478,122540.0,122530.0,1.32909361]
[1755114808545,0.97899478,122540.0,122530.0,1.32909361]
[1755114808769,1.00399478,122540.0,122530.0,1.32909361]
[1755114809814,0.97899478,122540.0,122530.0,1.32909361]
[1755114810148,1.00399478,122540.0,122530.0,1.32909361]
[1755114811254,1.01199478,122540.0,122530.0,1.32909361]
[1755114812324,0.96899422,122540.0,122530.0,1.32909361]
[1755114812733,1.05477422,122540.0,122530.0,1.32909361]
[1755114813428,1.05437422,122540.0,122530.0,1.32909361]
[1755114813605,1.05437422,122540.0,122530.0,1.20137361]
[1755114814015,1.05437422,122540.0,122530.0,1.32901361]
[1755114816110,1.05437422,122540.0,122530.0,1.20137361]
[1755114816352,1.05437422,122540.0,122530.0,1.33414361]
[1755114816738,0.66924527,122540.0,122530.0,1.33414361]
[1755114817581,0.64424527,122540.0,122530.0,1.33414361]
[1755114817777,1.11859422,122540.0,122530.0,1.33414361]
[1755114818231,1.09359422,122540.0,122530.0,1.20654361]
[1755114818443,1.09359422,122540.0,122530.0,1.33414361]
[1755114818642,1.11859422,122540.0,122530.0,1.33203361]
[1755114818873,1.17607865,122540.0,122530.0,1.33203361]
[1755114819060,1.17607865,122540.0,122530.0,1.20654361]
[1755114819232,1.16307865,122540.0,122530.0,1.33314361]
[1755114819438,1.15407865,122540.0,122530.0,1.33214361]
[1755114819645,1.16107865,122540.0,122530.0,1.33214361]
[1755114819858,1.16707865,122540.0,122530.0,1.33214361]
[1755114820478,1.08459422,122540.0,122530.0,1.33214361]
[1755114820935,1.08459422,122540.0,122530.0,1.20454361]
[1755114821214,1.08459422,122540.0,122530.0,1.33214361]
[1755114821417,1.08459422,122540.0,122530.0,1.20454361]
[1755114821606,1.08459422,122540.0,122530.0,1.33210361]
[1755114822270,1.13074905,122540.0,122530.0,1.33210361]
[1755114822508,1.13074905,122540.0,122530.0,1.32999361]
[1755114824534,1.13074905,122540.0,122530.0,1.33210361]
[1755114824912,1.08459422,122540.0,122530.0,1.33210361]
[1755114825376,1.08459422,122540.0,122530.0,1.20454361]
[1755114825377,0.63524527,122540.0,122530.0,1.20454361]
[1755114825585,0.63524527,122540.0,122530.0,1.33206361]
[1755114825753,0.63524527,122540.0,122530.0,1.20454361]
[1755114825964,0.63524527,122540.0,122530.0,1.33206361]
[1755114826104,1.08459422,122540.0,122530.0,1.33206361]
[1755114826461,1.07759422,122540.0,122530.0,1.33206361]
[1755114826661,1.08259422,122540.0,122530.0,1.33206361]
[1755114826962,1.07659422,122540.0,122530.0,1.33206361]
[1755114827202,1.05709422,122540.0,122530.0,1.20454361]
[1755114827426,1.06209422,122540.0,122530.0,1.33206361]
[1755114828185,0.72209422,122540.0,122530.0,1.33206361]
[1755114828391,0.27274527,122540.0,122530.0,1.33206361]
[1755114829056,0.26474527,122540.0,122530.0,1.33206361]
[1755114831020,0.09729625,122540.0,122530.0,1.20454361]
[1755114831364,0.09885624,122540.0,122530.0,1.33202361]
[1755114831543,0.09885624,122540.0,122530.0,1.39125361]
[1755114831751,0.09385624,122540.0,122530.0,1.26377361]
[1755114831985,0.08885624,122540.0,122530.0,1.84056256]
[1755114832209,0.09685624,122540.0,122530.0,1.71312256]
[1755114832415,0.09285624,122540.0,122530.0,1.84056256]
[1755114832657,0.08729625,122540.0,122530.0,1.84056256]
[1755114832945,0.08885624,122540.0,122530.0,1.39121361]
[1755114834146,0.06438324,122540.0,122530.0,1.39121361]
[1755114834302,0.06838324,122540.0,122530.0,1.39121361]
[1755114834504,0.07238324,122540.0,122530.0,1.39121361]
[1755114834707,0.07238324,122540.0,122530.0,1.84056256]
[1755114835344,0.07238324,122540.0,122530.0,1.71312256]
[1755114835787,0.06838324,122540.0,122530.0,1.84052256]
[1755114835963,0.07138324,122540.0,122530.0,1.71312256]
[1755114836155,0.06738324,122540.0,122530.0,1.84052256]
[1755114836367,0.07038324,122540.0,122530.0,1.84052256]
[1755114839809,0.07038324,122540.0,122530.0,1.69051089]
[1755114840264,0.07038324,122540.0,122530.0,1.56311089]
[1755114840475,0.07038324,122540.0,122530.0,1.69047089]
[1755114840689,0.07038324,122540.0,122530.0,1.24112194]
[1755114840881,0.07038324,122540.0,122530.0,1.69047089]
[1755114841405,0.07038324,122540.0,122530.0,1.56311089]
[1755114841615,0.07038324,122540.0,122530.0,1.79219089]
[1755114842258,0.07038324,122540.0,122530.0,1.66483089]
[1755114842463,0.07038324,122540.0,122530.0,1.79271089]
[1755114842672,0.07038324,122540.0,122530.0,1.34336194]
[1755114842874,0.07038324,122540.0,122530.0,1.56311089]
[1755114843089,0.07038324,122540.0,122530.0,1.69099089]
[1755114843344,0.07038324,122540.0,122530.0,1.24164194]
[1755114843539,0.07038324,122540.0,122530.0,1.56311089]
[1755114843679,0.07038324,122540.0,122530.0,1.11376194]
[1755114843888,0.07038324,122540.0,122530.0,1.18261194]
[1755114846096,0.07038324,122540.0,122530.0,1.18257194]
[1755114847504,0.07038324,122540.0,122530.0,1.05453194]
[1755114847706,0.07038324,122540.0,122530.0,1.18261194]
[1755114848299,0.07038324,122540.0,122530.0,1.05435194]
[1755114848527,0.07038324,122540.0,122530.0,1.18235194]
[1755114848813,0.07038324,122540.0,122530.0,1.18231194]
[1755114849015,0.07038324,122540.0,122530.0,1.05435194]
[1755114849241,0.07038324,122540.0,122530.0,1.18231194]
[1755114850003,0.09484924,122540.0,122530.0,1.18231194]
[1755114851468,0.09484924,122540.0,122530.0,1.28403194]
[1755114851894,0.09484924,122540.0,122530.0,1.73338089]
[1755114854878,0.09484924,122540.0,122530.0,1.28403194]
[1755114855022,0.09484924,122540.0,122530.0,1.73314089]
[1755114855236,0.09484924,122540.0,122530.0,1.67993089]
[1755114855237,0.07038324,122540.0,122530.0,1.67993089]
[1755114855510,0.07038324,122540.0,122530.0,1.80761089]
[1755114856227,0.07038324,122540.0,122530.0,1.80757089]
[1755114856399,0.07038324,122540.0,122530.0,1.57821089]
[1755114856627,0.07038324,122540.0,122530.0,1.70585089]
[1755114857812,0.07038324,122540.0,122530.0,1.62635089]
[1755114858810,0.07038324,122540.0,122530.0,1.30303089]
[1755114859018,0.06882325,122540.0,122530.0,2.09237984]
[1755114859125,0.06882325,122540.0,122530.0,1.64303089]
[1755114859589,0.06882325,122540.0,122530.0,1.77075089]
[1755114859928,0.06882325,122540.0,122530.0,1.64303089]
[1755114860328,0.06882325,122540.0,122530.0,1.77550089]
[1755114861452,0.06882325,122540.0,122530.0,2.07286089]
[1755114862403,0.06882325,122540.0,122530.0,1.94514089]
[1755114862721,0.06882325,122540.0,122530.0,2.07278089]
[1755114862907,0.06882325,122540.0,122530.0,1.94514089]
[1755114863226,0.06882325,122540.0,122530.0,2.07274089]
[1755114863810,0.06882325,122540.0,122530.0,1.97102089]
[1755114864013,0.06882325,122540.0,122530.0,1.77538089]
[1755114864799,0.06882325,122540.0,122530.0,2.22472984]
[1755114865166,0.06882325,122540.0,122530.0,1.77538089]
[1755114868987,0.06882325,122540.0,122530.0,1.64778089]
[1755114869220,0.06882325,122540.0,122530.0,1.77514089]
[1755114869630,0.06882325,122540.0,122530.0,1.64778089]
[1755114869866,0.06882325,122540.0,122530.0,1.77514089]
[1755114871225,0.06882325,122540.0,122530.0,1.77514071]
[1755114871443,0.06882325,122540.0,122530.0,2.07246071]
[1755114872916,0.06882325,122540.0,122530.0,1.50338071]
[1755114873125,0.06882325,122540.0,122530.0,1.05403176]
[1755114873340,0.06882325,122540.0,122530.0,1.18139176]
[1755114873521,0.06882325,122540.0,122530.0,1.63074071]
[1755114874162,0.06882325,122540.0,122530.0,1.30778071]
[1755114874515,0.06882325,122540.0,122530.0,1.43514071]
[1755114875280,0.06882325,122540.0,122530.0,1.30778071]
[1755114875495,0.06882325,122540.0,122530.0,1.43514071]
[1755114877027,0.06882325,122540.0,122530.0,1.30778071]
[1755114877270,0.06882325,122540.0,122530.0,1.43514071]
[1755114878792,0.06882325,122540.0,122530.0,0.85843176]
[1755114878992,0.06882325,122540.0,122530.0,1.43514071]
[1755114879198,0.06882325,122540.0,122530.0,1.88448966]
[1755114879636,0.06882325,122540.0,122530.0,2.09712966]
[1755114879949,0.06882325,122540.0,122530.0,2.22448966]
[1755114880199,0.06882325,122540.0,122530.0,2.09712966]
[1755114880440,0.06882325,122540.0,122530.0,1.64778071]
[1755114880642,0.06882325,122540.0,122530.0,1.77514071]
[1755114880859,0.06582325,122540.0,122530.0,2.09712966]
[1755114881070,0.003,122540.0,122530.0,2.12212966]
[1755114881308,0.003,122540.0,122530.0,2.1303379]
[1755114881511,0.003,122540.0,122530.0,2.57594614]
[1755114881929,0.04029578,122550.0,122540.0,0.025]
[1755114882148,0.04029578,122550.0,122540.0,0.92723821]
[1755114882267,0.04029578,122550.0,122540.0,0.9236979]
[1755114882879,0.04029578,122550.0,122540.0,1.0642579]
[1755114883079,0.04029578,122550.0,122540.0,1.06440426]
[1755114883471,0.04029578,122550.0,122540.0,1.06740426]
[1755114883905,0.04029578,122550.0,122540.0,0.92684426]
[1755114884306,0.04029578,122550.0,122540.0,1.06836426]
[1755114884548,0.04029578,122550.0,122540.0,1.06844426]
[1755114884764,0.04029578,122550.0,122540.0,1.33658426]
[1755114887320,0.04029578,122550.0,122540.0,1.36104026]
[1755114888188,0.04029578,122550.0,122540.0,1.36092026]
[1755114888294,0.04029578,122550.0,122540.0,1.22040026]
[1755114888531,0.04029578,122550.0,122540.0,1.36092026]
[1755114890334,0.04029578,122550.0,122540.0,1.36068026]
[1755114890750,0.04029578,122550.0,122540.0,1.38568026]
[1755114891178,0.04029578,122550.0,122540.0,1.40025827]
[1755114891403,0.04029578,122550.0,122540.0,1.83710101]
[1755114891834,0.04029578,122550.0,122540.0,1.66022581]
[1755114892046,0.04029578,122550.0,122540.0,1.62287483]
[1755114892700,0.04029578,122550.0,122540.0,1.63928329]
[1755114892935,0.04029578,122550.0,122540.0,1.62287483]
[1755114894280,0.04029578,122550.0,122540.0,1.48207483]
[1755114894490,0.04029578,122550.0,122540.0,2.15546703]
[1755114894685,0.02149886,122580.0,122570.0,0.47343169]
[1755114895234,0.02149886,122580.0,122570.0,0.92278064]
[1755114895530,0.02149886,122580.0,122570.0,1.06434064]
[1755114896086,0.02149886,122580.0,122570.0,1.09034064]
[1755114896327,0.02149886,122580.0,122570.0,1.1065914]
[1755114896527,0.02149886,122580.0,122570.0,0.9650314]
[1755114896739,0.02149886,122580.0,122570.0,0.2079335]
[1755114896988,0.02149886,122580.0,122570.0,1.1066314]
[1755114897503,0.02149886,122580.0,122570.0,1.09038064]
[1755114897958,0.02149886,122580.0,122570.0,0.94744151]
[1755114898369,0.02249886,122580.0,122570.0,1.08912151]
[1755114898541,0.02249886,122580.0,122570.0,0.94744151]
[1755114898961,0.02249886,122580.0,122570.0,1.08908151]
[1755114899165,0.02249886,122580.0,122570.0,1.11353051]
[1755114899374,0.02249886,122580.0,122570.0,1.11361051]
[1755114900329,0.02249886,122580.0,122570.0,0.04819261]
[1755114900560,0.02249886,122580.0,122570.0,0.63926156]
[1755114900799,0.02249886,122580.0,122570.0,0.97189051]
[1755114901013,0.02249886,122580.0,122570.0,1.05341009]
[1755114901234,0.02249886,122580.0,122570.0,1.13080127]
[1755114901479,0.02249886,122580.0,122570.0,1.51343911]
[1755114901619,0.02249886,122580.0,122570.0,1.85075911]
[1755114901800,0.02249886,122580.0,122570.0,1.60731911]
[1755114902004,0.02249886,122580.0,122570.0,1.74923911]
[1755114902251,0.02249886,122580.0,122570.0,1.49448236]
[1755114902535,0.53119,122590.0,122580.0,0.47045613]
[1755114902684,0.53119,122590.0,122580.0,1.12861279]
[1755114903345,0.00693604,122600.0,122590.0,1.81849765]
[1755114903582,0.00693604,122600.0,122590.0,1.96109765]
[1755114903876,0.00742504,122600.0,122590.0,1.83376375]
[1755114904103,0.00742504,122600.0,122590.0,1.30389053]
[1755114904538,0.00742504,122600.0,122590.0,1.3691487]
[1755114904759,0.00742504,122600.0,122590.0,1.96121765]
[1755114904937,0.00742504,122600.0,122590.0,2.28753765]
[1755114905252,0.00742504,122600.0,122590.0,2.28757765]
[1755114905669,0.00742504,122600.0,122590.0,2.28785765]
[1755114905896,0.01680844,122610.0,122600.0,0.47044548]
[1755114906131,0.02308263,122630.0,122610.0,0.45299114]
[1755114906374,0.02308263,122630.0,122620.0,1.59895304]
[1755114906600,0.01493942,122630.0,122620.0,2.37105494]
[1755114906815,0.10625208,122640.0,122630.0,0.44331398]
[1755114907023,0.09810887,122640.0,122630.0,2.1849306]
[1755114907230,0.09810887,122640.0,122630.0,1.73558165]
[1755114907434,0.08996566,122640.0,122630.0,1.73558165]
[1755114907874,0.08182245,122640.0,122630.0,0.83688375]
[1755114908099,0.08182245,122640.0,122630.0,1.87934165]
[1755114908312,0.07367924,122640.0,122630.0,0.94052686]
[1755114908531,0.07367924,122640.0,122630.0,1.90446165]
[1755114909007,0.07367924,122640.0,122630.0,1.71279378]
[1755114909198,0.07367924,122640.0,122630.0,1.58762151]
[1755114909402,0.07367924,122640.0,122630.0,1.75658151]
[1755114909558,0.07367924,122640.0,122630.0,1.75674151]
[1755114909759,0.07367924,122640.0,122630.0,1.8219784]
[1755114909966,0.07367924,122640.0,122630.0,1.6778584]
[1755114910167,0.07367924,122640.0,122630.0,1.63007053]
[1755114910370,0.07367924,122640.0,122630.0,1.77423053]
[1755114910672,0.07367924,122640.0,122630.0,1.77431053]
[1755114911246,0.07367924,122640.0,122630.0,1.77906053]
[1755114911453,0.07367924,122640.0,122630.0,1.93194053]
[1755114911657,0.07367924,122640.0,122630.0,1.17748263]
[1755114911873,0.07367924,122640.0,122630.0,2.07618053]
[1755114912498,0.07367924,122640.0,122630.0,1.95705151]
[1755114913085,0.07367924,122640.0,122630.0,1.76153151]
[1755114913536,0.07367924,122640.0,122630.0,1.61737151]
[1755114913834,0.07367924,122640.0,122630.0,1.76153151]
[1755114913974,0.07367924,122640.0,122630.0,1.61737151]
[1755114914587,0.07367924,122640.0,122630.0,0.67093]
[1755114914913,0.07367924,122640.0,122630.0,0.80302256]
[1755114915095,0.07367924,122640.0,122630.0,1.39693151]
[1755114915335,0.07367924,122640.0,122630.0,1.25237151]
[1755114915541,0.07367924,122640.0,122630.0,1.59237151]
[1755114916046,0.07367924,122640.0,122630.0,1.59536151]
[1755114916224,0.07367924,122640.0,122630.0,1.73705151]
[1755114916554,0.15640249,122640.0,122630.0,1.12027895]
[1755114916776,0.15640249,122640.0,122630.0,1.14302256]
[1755114917162,0.15796248,122640.0,122630.0,0.33093]
[1755114917363,0.15796248,122640.0,122630.0,0.47565]
[1755114917564,0.15640249,122640.0,122630.0,0.67093]
[1755114917771,0.15640249,122640.0,122630.0,1.62036151]
[1755114917772,0.07367924,122640.0,122630.0,1.62036151]
[1755114917973,0.07367924,122640.0,122630.0,1.6855984]
[1755114918152,0.07367924,122640.0,122630.0,0.94926952]
[1755114918359,0.07367924,122640.0,122630.0,1.66224653]
[1755114918546,0.07367924,122640.0,122630.0,1.80716653]
[1755114918928,0.07367924,122640.0,122630.0,1.72748342]
[1755114919193,0.07367924,122640.0,122630.0,2.25955562]
[1755114919423,0.07367924,122640.0,122630.0,1.95516667]
[1755114919627,0.07367924,122640.0,122630.0,1.95528667]
[1755114919961,0.07367924,122640.0,122630.0,1.95532667]
[1755114920618,0.07367924,122640.0,122630.0,1.81020667]
[1755114920833,0.07367924,122640.0,122630.0,1.95532667]
[1755114921024,0.07367924,122640.0,122630.0,1.81220667]
[1755114921239,0.07367924,122640.0,122630.0,1.81320667]
[1755114921447,0.07367924,122640.0,122630.0,2.01440667]
[1755114921676,0.07367924,122640.0,122630.0,2.10820667]
[1755114921891,0.07367924,122640.0,122630.0,2.00960667]
[1755114922115,0.07367924,122640.0,122630.0,2.34032562]
[1755114922316,0.07367924,122640.0,122630.0,2.03625667]
[1755114923297,0.07367924,122640.0,122630.0,1.89187667]
[1755114923519,0.06553762,122640.0,122630.0,1.90744279]
[1755114923763,0.057396,122640.0,122630.0,2.03723667]
[1755114923966,0.057396,122640.0,122630.0,1.96074667]
[1755114924389,0.037896,122640.0,122630.0,1.96074667]
[1755114925021,0.037896,122640.0,122630.0,1.95774667]
[1755114925833,0.037896,122640.0,122630.0,1.95670667]
[1755114926167,0.037896,122640.0,122630.0,1.95770667]
[1755114926569,0.037896,122640.0,122630.0,1.95778667]
[1755114926824,0.037896,122640.0,122630.0,1.7666439]
[1755114927038,0.037896,122640.0,122630.0,1.79266751]
[1755114927235,0.037896,122640.0,122630.0,1.64690751]
[1755114927483,0.037896,122640.0,122630.0,1.78946751]
[1755114927686,0.037896,122640.0,122630.0,1.81007653]
[1755114928296,0.037896,122640.0,122630.0,1.87535342]
[1755114928499,0.037896,122640.0,122630.0,1.95807667]
[1755114928707,0.037896,122640.0,122630.0,1.89283978]
[1755114928910,0.037896,122640.0,122630.0,1.74707978]
[1755114929104,0.037896,122640.0,122630.0,1.95803667]
[1755114929377,0.037896,122640.0,122630.0,1.05929877]
[1755114929661,0.037896,122640.0,122630.0,1.95799667]
[1755114929975,0.03612024,122640.0,122630.0,1.70026824]
[1755114930189,0.03612024,122640.0,122630.0,1.84586824]
[1755114930391,0.03612024,122640.0,122630.0,1.70026824]
[1755114930840,0.03612024,122640.0,122630.0,1.84590824]
[1755114931036,0.03612024,122640.0,122630.0,1.82316463]
[1755114931258,0.03612024,122640.0,122630.0,1.84590824]
[1755114931479,0.03612024,122640.0,122630.0,2.04910824]
[1755114931723,0.03612024,122640.0,122630.0,1.99726824]
[1755114931954,0.03612024,122640.0,122630.0,2.06895824]
[1755114932173,0.03612024,122640.0,122630.0,1.96735824]
[1755114932418,0.03612024,122640.0,122630.0,1.94461463]
[1755114932646,0.03612024,122640.0,122630.0,1.96735824]
[1755114932862,0.03612024,122640.0,122630.0,1.62631824]
[1755114933047,0.03612024,122640.0,122630.0,1.77191824]
[1755114933181,0.03612024,122640.0,122630.0,1.77195824]
[1755114934240,0.03612024,122640.0,122630.0,1.62631824]
[1755114934443,0.03612024,122640.0,122630.0,1.77195824]
[1755114935133,0.03612024,122640.0,122630.0,1.62631824]
[1755114935335,0.03612024,122640.0,122630.0,1.77191824]
[1755114936252,0.02798066,122640.0,122630.0,2.07566719]
[1755114936456,0.02798066,122640.0,122630.0,1.70026824]
[1755114936855,0.01984108,122640.0,122630.0,1.84792824]
[1755114937072,0.0117015,122640.0,122630.0,1.84792824]
[1755114937247,0.0117015,122640.0,122630.0,2.29727719]
[1755114937408,0.00356192,122640.0,122630.0,2.29727719]
[1755114937803,0.01977891,122650.0,122640.0,0.42268059]
[1755114938028,0.01977891,122650.0,122640.0,2.45653105]
[1755114938227,0.0116395,122650.0,122640.0,2.4926443]
[1755114938441,0.00028717,122670.0,122660.0,0.44181827]
[1755114938647,0.00028717,122670.0,122660.0,1.34265617]
[1755114938809,0.00028717,122670.0,122660.0,1.49141617]
[1755114939008,0.00028717,122670.0,122660.0,1.34600253]
[1755114939208,0.00028717,122670.0,122660.0,2.14033584]
[1755114939406,0.00028717,122670.0,122660.0,2.13255278]
[1755114939633,0.00050135,122720.0,122660.0,2.13255278]
[1755114939634,0.01673983,122740.0,122690.0,0.01914832]
[1755114939828,0.08428324,122730.0,122720.0,0.44934895]
[1755114940031,0.08428324,122730.0,122720.0,0.59490895]
[1755114940445,0.08272325,122730.0,122720.0,0.61947459]
[1755114940665,0.08272325,122730.0,122720.0,1.06882354]
[1755114940863,0.08272325,122730.0,122720.0,0.47391459]
[1755114941058,0.08321286,122730.0,122720.0,0.61947459]
[1755114941291,0.08321286,122730.0,122720.0,0.17012564]
[1755114941570,0.08321286,122730.0,122720.0,0.91647459]
[1755114942154,0.08321286,122730.0,122720.0,0.91643459]
[1755114942910,0.08321286,122730.0,122720.0,0.75480455]
[1755114943117,0.08321286,122730.0,122720.0,0.4510156]
[1755114943315,0.08321286,122730.0,122720.0,0.90036455]
[1755114943466,0.08321286,122730.0,122720.0,0.79868455]
[1755114943980,0.08321286,122730.0,122720.0,0.60332455]
[1755114944329,0.08321286,122730.0,122720.0,0.45784455]
[1755114944475,0.08321286,122730.0,122690.0,0.09127271]
[1755114944687,0.00155999,122720.0,122700.0,0.0035336]
[1755114945040,0.00155999,122720.0,122710.0,0.59482895]
[1755114945366,0.0020496,122730.0,122720.0,0.0009]
[1755114945538,0.0020496,122730.0,122720.0,0.45024895]
[1755114945769,0.0020496,122730.0,122720.0,0.59572895]
[1755114945990,0.08477285,122730.0,122720.0,0.59588895]
[1755114946265,0.08477285,122730.0,122720.0,0.59596895]
[1755114946464,0.08477285,122730.0,122720.0,0.45024895]
[1755114946630,0.08477285,122730.0,122720.0,0.59600895]
[1755114947050,0.08477285,122730.0,122720.0,0.14666]
[1755114947912,0.08477285,122730.0,122720.0,0.0009]
[1755114948087,0.08477285,122730.0,122720.0,0.14666]
[1755114948381,0.08477285,122730.0,122720.0,0.0009]
[1755114948578,0.08477285,122730.0,122720.0,0.3009]
[1755114948763,0.08477285,122730.0,122720.0,0.44646]
[1755114949287,0.08477285,122730.0,122720.0,0.36774771]
[1755114949564,0.08477285,122730.0,122720.0,0.96265666]
[1755114950387,0.08477285,122730.0,122720.0,0.3009]
[1755114950646,0.5341218,122730.0,122720.0,0.3009]
[1755114950852,0.53256181,122730.0,122720.0,0.44642]
[1755114951157,0.08321286,122730.0,122720.0,0.44642]
[1755114951353,0.08477285,122730.0,122720.0,0.44642]
[1755114951553,0.08477285,122730.0,122720.0,0.59778]
[1755114951715,0.08477285,122730.0,122720.0,0.7433]
[1755114952618,0.08477285,122730.0,122720.0,0.74326]
[1755114953993,0.08477285,122730.0,122720.0,0.49622]
[1755114954133,0.5341218,122730.0,122720.0,0.3009]
[1755114954334,0.53256181,122730.0,122720.0,0.64146]
[1755114954870,0.53216181,122730.0,122720.0,0.64146]
[1755114955075,0.54921083,122730.0,122720.0,0.49622]
[1755114955274,0.70626251,122730.0,122720.0,0.64146]
[1755114955513,0.70586251,122730.0,122720.0,0.64146]
[1755114955724,0.70546251,122730.0,122720.0,0.64146]
[1755114955951,0.70506251,122730.0,122720.0,0.64146]
[1755114956163,0.70466251,122730.0,122720.0,0.49622]
[1755114956389,0.70466251,122730.0,122720.0,0.64146]
[1755114956940,0.70466251,122730.0,122720.0,0.49622]
[1755114956941,0.25531356,122730.0,122720.0,0.49622]
[1755114957414,0.25531356,122730.0,122720.0,0.64158]
[1755114957615,0.24946188,122730.0,122720.0,0.64158]
[1755114957827,0.25531356,122730.0,122720.0,0.64158]
[1755114958485,0.70466251,122730.0,122720.0,0.64154]
[1755114958697,0.70466251,122730.0,122720.0,0.49622]
[1755114958897,0.70466251,122730.0,122720.0,0.64146]
[1755114959945,0.70466251,122730.0,122720.0,0.49622]
[1755114960138,0.26331356,122730.0,122720.0,0.64146]
[1755114960340,0.71266251,122730.0,122720.0,0.49622]
[1755114960518,0.26331356,122730.0,122720.0,0.64154]
[1755114960721,0.71566251,122730.0,122720.0,0.64154]
[1755114960954,0.74009551,122730.0,122720.0,0.64154]
[1755114961246,0.82587551,122730.0,122720.0,0.64154]
[1755114961465,0.74009551,122730.0,122720.0,0.59778]
[1755114961669,0.74009551,122730.0,122720.0,0.74306]
[1755114961866,0.73809551,122730.0,122720.0,0.74306]
[1755114962314,0.74009551,122730.0,122720.0,0.74306]
[1755114962545,1.08009551,122730.0,122720.0,0.59778]
[1755114962716,1.16057994,122730.0,122720.0,0.74306]
[1755114962929,1.69570889,122730.0,122720.0,0.40246]
[1755114963128,1.88991153,122730.0,122720.0,0.7431]
[1755114963539,1.88991153,122730.0,122720.0,0.74322]
[1755114963737,1.88791153,122730.0,122720.0,0.74322]
[1755114963939,1.88791153,122730.0,122720.0,0.59782]
[1755114964176,1.88791153,122730.0,122720.0,0.57754765]
[1755114964381,2.41534048,122730.0,122720.0,0.44916377]
[1755114964590,2.37413664,122730.0,122720.0,0.27705524]
[1755114964777,0.5990807,122670.0,122660.0,0.10156]
[1755114965055,1.24446869,122670.0,122660.0,0.29692]
[1755114965495,1.1641529,122670.0,122660.0,0.29692]
[1755114965690,1.35164294,122670.0,122660.0,0.44232]
[1755114965941,1.15775222,122670.0,122660.0,0.29692]
[1755114966149,1.07197222,122670.0,122660.0,0.29740961]
[1755114966344,1.1108239,122670.0,122660.0,0.44268961]
[1755114966502,0.67853941,122670.0,122660.0,0.29740961]
[1755114966722,0.26835449,122670.0,122660.0,0.29740961]
[1755114966924,0.23750281,122670.0,122660.0,0.44260961]
[1755114967122,0.24335449,122670.0,122660.0,0.44256961]
[1755114967869,0.67711645,122670.0,122660.0,0.44256961]
[1755114968084,0.67711645,122670.0,122660.0,0.44244961]
[1755114968299,0.67711645,122670.0,122660.0,0.44240961]
[1755114968532,0.68656547,122670.0,122660.0,0.29740961]
[1755114968758,0.69356547,122670.0,122660.0,0.44240961]
[1755114968961,0.72676437,122670.0,122660.0,0.44240961]
[1755114969136,0.69556547,122670.0,122660.0,0.44240961]
[1755114969340,0.69556547,122670.0,122660.0,0.44740961]
[1755114969690,0.69556547,122670.0,122660.0,0.30240961]
[1755114970380,0.69556547,122670.0,122660.0,0.44748961]
[1755114970607,0.33426054,122670.0,122660.0,0.44768961]
[1755114970844,0.69556547,122670.0,122660.0,0.30240961]
[1755114971251,0.69056547,122670.0,122660.0,0.30240961]
[1755114971430,0.69056547,122670.0,122660.0,0.44772961]
[1755114971942,1.03056547,122670.0,122660.0,0.44760961]
[1755114972142,1.03056547,122670.0,122660.0,0.30240961]
[1755114972403,1.24525168,122670.0,122660.0,0.30240961]
[1755114972606,1.03056547,122670.0,122660.0,0.44752961]
[1755114973243,0.15585168,122650.0,122640.0,0.10164]
[1755114973383,0.15585168,122650.0,122640.0,0.29722636]
[1755114973384,0.67786688,122650.0,122640.0,0.29722636]
[1755114973569,0.24054493,122650.0,122640.0,0.44431636]
[1755114973776,0.23857493,122650.0,122640.0,0.44431636]
[1755114973998,0.24054493,122650.0,122640.0,0.29722636]
[1755114974209,0.42806056,122650.0,122640.0,0.44214636]
[1755114974407,0.44550958,122650.0,122640.0,0.44214636]
[1755114974615,1.22289154,122650.0,122640.0,0.29722636]
[1755114974875,1.22789154,122650.0,122640.0,0.44206636]
[1755114975155,1.22289154,122650.0,122640.0,0.29722636]
[1755114975360,1.76613793,122650.0,122640.0,0.44206636]
[1755114975569,1.32737597,122650.0,122640.0,0.44206636]
[1755114975762,1.24489154,122650.0,122640.0,0.29722636]
[1755114976005,1.6866535,122650.0,122640.0,0.44198636]
[1755114976219,1.6786535,122650.0,122640.0,0.44198636]
[1755114976430,1.24489154,122650.0,122640.0,0.44190636]
[1755114976632,1.32737597,122650.0,122640.0,0.44190636]
[1755114976812,1.6786535,122650.0,122640.0,0.44190636]
[1755114977051,1.6786535,122650.0,122640.0,0.44186636]
[1755114977251,1.24289154,122650.0,122640.0,0.44186636]
[1755114977460,1.24489154,122650.0,122640.0,0.44186636]
[1755114977604,1.24489154,122650.0,122640.0,0.29722636]
[1755114977817,1.29021655,122650.0,122640.0,0.44166636]
[1755114978030,1.24489154,122650.0,122640.0,0.44166636]
[1755114978176,1.24489154,122650.0,122640.0,0.29722636]
[1755114978380,1.24689154,122650.0,122640.0,0.44166636]
[1755114978692,1.24489154,122650.0,122640.0,0.44166636]
[1755114978984,1.24789154,122650.0,122640.0,0.44166636]
[1755114979143,1.33037597,122650.0,122640.0,0.44166636]
[1755114979460,1.33037597,122650.0,122640.0,0.44158636]
[1755114979937,0.72992838,122650.0,122640.0,0.29722636]
[1755114980158,0.68465768,122650.0,122640.0,5.30230636]
[1755114980360,0.53465768,122650.0,122640.0,5.44634636]
[1755114980505,0.68550936,122650.0,122640.0,5.44638636]
[1755114980715,0.68250936,122650.0,122640.0,5.30230636]
[1755114980914,0.68250936,122650.0,122640.0,5.44638636]
[1755114981116,1.12524132,122650.0,122640.0,5.29935636]
[1755114981450,1.12024132,122650.0,122640.0,5.44118636]
[1755114981745,1.12324132,122650.0,122640.0,5.44626636]
[1755114982192,1.12124132,122650.0,122640.0,5.44622636]
[1755114982600,0.68850936,122650.0,122640.0,5.30230636]
[1755114983172,0.60017325,122650.0,122640.0,5.30230636]
[1755114983472,0.60417325,122650.0,122640.0,5.44598636]
[1755114983602,0.45417325,122650.0,122640.0,5.38123636]
[1755114983841,0.11502493,122650.0,122640.0,5.38123636]
[1755114984019,0.11658492,122650.0,122640.0,5.38123636]
[1755114984366,0.11573324,122650.0,122640.0,5.52471636]
[1755114984568,0.45358492,122650.0,122640.0,5.38123636]
[1755114984829,0.45402493,122650.0,122640.0,5.38123636]
[1755114985040,0.45317325,122650.0,122640.0,5.52467636]
[1755114985415,0.44917325,122650.0,122640.0,5.38123636]
[1755114985564,0.45217325,122650.0,122640.0,5.38123636]
[1755114985770,0.08772325,122650.0,122640.0,5.96027832]
[1755114985980,0.08928324,122650.0,122640.0,5.96027832]